bitfinex-derivatives/quotes_ETHF0:USTF0_20250831
["timestamp","ask_amount","ask_price","bid_price","bid_amount"]
[1756654488569,0.479,4469.7,4469.6,0.225]
[1756654490376,0.479,4469.7,4469.4,1.37366983]
[1756654490674,0.479,4469.6,4469.5,0.225]
[1756654491271,0.479,4469.6,4469.5,1.59866983]
[1756654493771,0.1832,4469.6,4469.1,3.2078]
[1756654493973,0.2958,4469.5,4469.2,0.225]
[1756654494172,0.2958,4469.5,4469.4,1.37366983]
[1756654495267,0.47803436,4469.5,4469.4,1.37366983]
[1756654495671,0.66123436,4469.5,4469.4,1.37366983]
[1756654495977,0.66115125,4469.5,4469.4,1.37366983]
[1756654497081,0.47795125,4469.5,4469.4,1.37366983]
[1756654498875,0.47795125,4469.5,4469.4,1.59866983]
[1756654499982,0.18215125,4469.5,4469.4,1.59866983]
[1756654500581,0.18215125,4469.5,4469.4,5.82240983]
[1756654500782,0.1118,4469.7,4469.4,5.82240983]
[1756654500978,0.1118,4469.7,4469.6,3.2078]
[1756654501679,0.4076,4469.7,4469.6,3.4328]
[1756654501885,0.5908,4469.7,4469.6,3.4328]
[1756654502588,0.4076,4469.7,4469.6,3.4328]
[1756654502980,0.1118,4469.7,4469.6,3.4328]
[1756654503884,0.29440791,4469.7,4469.6,3.4328]
[1756654504583,0.1118,4469.7,4469.6,3.4328]
[1756654504783,0.29454434,4469.7,4469.6,3.4328]
[1756654505291,0.59034434,4469.7,4469.6,3.4328]
[1756654505481,0.77354434,4469.7,4469.6,3.2078]
[1756654505682,0.77354434,4469.7,4469.6,3.4328]
[1756654506391,0.29454434,4469.7,4469.6,3.4328]
[1756654506688,0.29454434,4469.7,4469.6,7.4328]
[1756654508990,0.29454434,4469.7,4469.6,3.4328]
[1756654509190,0.58214434,4469.7,4469.6,3.4328]
[1756654511290,0.77904434,4469.7,4469.6,3.2078]
[1756654511490,0.77904434,4469.7,4469.6,3.4328]
[1756654511690,0.66724434,4469.7,4469.6,3.4328]
[1756654512489,0.66724434,4469.7,4469.6,3.2078]
[1756654512692,0.66724434,4469.7,4469.6,3.4328]
[1756654513082,0.2876,4469.6,4469.1,1.37366983]
[1756654513391,0.4845,4469.3,4469.2,0.225]
[1756654513582,0.66724434,4469.3,4469.2,1.59866983]
[1756654515396,0.66751115,4469.3,4469.2,1.59866983]
[1756654517391,0.1969,4469.1,4469.0,3.2078]
[1756654517592,0.66751115,4469.1,4469.0,3.2078]
[1756654518095,0.2876,4469.0,4468.4,3.2078]
[1756654518296,0.4845,4468.5,4468.4,3.2078]
[1756654518599,0.66751115,4468.5,4468.4,3.4328]
[1756654519298,0.66751115,4468.5,4468.4,0.225]
[1756654520488,0.66751115,4468.5,4467.9,3.2078]
[1756654520691,0.2876,4468.2,4468.0,0.225]
[1756654520891,0.18301115,4468.1,4468.0,0.225]
[1756654521099,0.66751115,4468.1,4468.0,1.59866983]
[1756654521301,0.18301115,4468.1,4468.0,1.59866983]
[1756654522300,0.4845,4468.0,4467.9,3.2078]
[1756654522500,0.66751115,4468.0,4467.9,3.4338]
[1756654523998,0.66751115,4468.0,4467.9,3.2078]
[1756654525901,0.4845,4468.0,4467.9,3.2078]
[1756654526098,0.66808292,4468.0,4467.9,3.2078]
[1756654526400,0.66808292,4468.0,4467.9,3.4338]
[1756654528498,0.66808292,4468.0,4467.9,0.226]
[1756654529691,0.66789172,4468.0,4467.9,0.226]
[1756654529903,0.18339172,4468.0,4467.9,0.226]
[1756654530299,0.47099172,4468.0,4467.9,4.58146983]
[1756654530500,0.47099172,4468.0,4467.9,4.80746983]
[1756654531908,0.66789172,4468.0,4467.9,4.80746983]
[1756654534512,0.47099172,4468.0,4467.9,4.80746983]
[1756654535712,0.66789172,4468.0,4467.9,4.80746983]
[1756654535913,0.66789172,4468.0,4467.9,3.4338]
[1756654536513,0.4845,4468.0,4467.9,3.4338]
[1756654536715,0.66792863,4468.0,4467.9,3.4338]
[1756654538020,0.66792863,4468.0,4467.9,3.2078]
[1756654538220,0.66792863,4468.0,4467.9,3.4338]
[1756654540711,0.66792863,4468.0,4467.9,0.226]
[1756654541425,0.66792863,4468.0,4467.6,1.37366983]
[1756654541619,0.2774,4467.8,4467.7,0.226]
[1756654541921,0.66052863,4467.8,4467.7,0.226]
[1756654543523,0.66100642,4467.8,4467.7,0.226]
[1756654544325,0.66100642,4467.8,4467.6,1.37366983]
[1756654544533,0.66100642,4467.7,4467.6,1.37366983]
[1756654544826,0.66100642,4467.7,4467.6,1.59966983]
[1756654545129,0.66100642,4467.7,4467.6,1.37366983]
[1756654545330,0.66100642,4467.7,4467.6,1.59966983]
[1756654546224,0.18390642,4467.7,4467.6,1.59966983]
[1756654547428,0.18435253,4467.7,4467.6,1.59966983]
[1756654548131,0.18435234,4467.7,4467.6,1.59966983]
[1756654548325,0.18435224,4467.7,4467.6,1.59966983]
[1756654551528,0.1119,4467.9,4467.6,5.82349983]
[1756654551728,0.1119,4467.9,4467.6,5.59966983]
[1756654559234,0.1119,4467.9,4467.6,1.59966983]
[1756654562835,3.2078,4470.0,4467.8,1.37366983]
[1756654563140,0.4771,4469.3,4469.2,1.37366983]
[1756654563438,0.66114981,4469.3,4469.2,1.59866983]
[1756654565733,0.66114981,4469.3,4469.2,0.225]
[1756654567429,0.4771,4469.3,4469.2,0.225]
[1756654567631,0.66104435,4469.3,4469.2,0.225]
[1756654570938,0.66104435,4469.3,4469.2,1.59866983]
[1756654573147,0.66104435,4469.3,4469.2,0.225]
[1756654573338,0.4961,4469.2,4469.1,3.2078]
[1756654573543,0.38544435,4469.2,4469.1,0.225]
[1756654573743,0.38544435,4469.2,4469.0,0.225]
[1756654574045,0.4961,4468.7,4468.6,3.4328]
[1756654574245,0.68004435,4468.7,4468.6,3.4328]
[1756654574441,0.68007736,4468.7,4468.6,3.4328]
[1756654574846,5.75914719,4468.7,4468.1,3.2078]
[1756654575145,0.4961,4468.2,4468.1,3.2078]
[1756654575340,0.68007736,4468.2,4468.1,3.4328]
[1756654577544,0.68007736,4468.2,4468.1,5.22266983]
[1756654578146,0.68014263,4468.2,4468.1,5.22266983]
[1756654580853,0.68014263,4468.2,4468.1,3.849]
[1756654583255,0.18404263,4468.2,4468.1,3.849]
[1756654583849,0.47864263,4468.2,4468.1,3.849]
[1756654585342,0.68014263,4468.2,4468.1,5.22266983]
[1756654585547,0.4961,4468.2,4468.1,5.22266983]
[1756654587054,3.2078,4469.0,4468.1,5.22266983]
[1756654587352,3.2078,4469.0,4468.2,0.2255]
[1756654587353,0.2946,4468.9,4468.2,0.2255]
[1756654587555,0.2946,4468.9,4468.4,0.2255]
[1756654587848,0.4961,4468.5,4468.4,0.4162]
[1756654588052,0.4961,4468.5,4468.4,0.6412]
[1756654588252,3.2078,4469.0,4468.1,3.4333]
[1756654588253,0.2946,4468.4,4468.1,3.4333]
[1756654588554,0.4961,4468.2,4468.1,3.624]
[1756654588859,0.4961,4468.2,4468.1,3.849]
[1756654590454,0.4961,4468.2,4468.1,3.624]
[1756654590655,0.4961,4468.2,4468.1,3.849]
[1756654591851,0.2946,4468.9,4468.1,4.99716983]
[1756654592054,0.4961,4468.9,4468.8,0.4162]
[1756654594848,3.5024,4469.0,4468.9,0.2255]
[1756654595053,3.5024,4469.0,4468.9,0.4162]
[1756654595254,3.2078,4469.0,4468.9,0.4162]
[1756654595550,3.2078,4469.0,4468.8,0.225]
[1756654595551,0.4961,4469.3,4469.2,0.1907]
[1756654595755,0.4961,4469.3,4469.2,0.4162]
[1756654597246,0.2946,4469.9,4469.2,0.1907]
[1756654597451,0.2946,4469.9,4469.3,0.2255]
[1756654599662,0.4961,4469.9,4469.8,0.4168]
[1756654600759,0.2015,4469.9,4469.3,0.2261]
[1756654600960,0.1851,4469.4,4469.3,0.1841]
[1756654601166,0.4652,4469.4,4469.3,0.4102]
[1756654604364,0.1851,4469.4,4469.2,3.2078]
[1756654604560,0.4652,4469.3,4469.2,3.2078]
[1756654605062,0.4652,4469.3,4469.2,3.618]
[1756654606170,0.1851,4468.7,4468.6,3.3919]
[1756654606360,0.4652,4468.7,4468.6,3.843]
[1756654609468,0.4652,4468.7,4468.6,3.4328]
[1756654610371,0.4652,4468.7,4468.6,3.843]
[1756654610571,0.4652,4468.7,4468.6,3.4328]
[1756654611975,0.4652,4468.7,4468.6,3.843]
[1756654614775,0.4652,4468.7,4468.6,3.6169]
[1756654614973,0.4652,4468.7,4468.6,3.4328]
[1756654616473,0.4652,4468.7,4468.6,3.2078]
[1756654617374,0.1851,4468.7,4468.4,0.4511]
[1756654617578,0.4652,4468.5,4468.4,0.6352]
[1756654619576,0.4652,4468.5,4468.4,0.4102]
[1756654619781,0.4652,4468.5,4468.4,0.6352]
[1756654621382,0.4652,4468.5,4468.2,0.2261]
[1756654621578,0.4652,4468.5,4468.3,0.225]
[1756654622082,0.4652,4468.5,4468.2,0.2261]
[1756654622277,0.4652,4468.5,4468.1,3.2078]
[1756654622278,1.83886983,4468.5,4468.1,3.2078]
[1756654622578,0.2801,4468.4,4468.1,3.4339]
[1756654622783,0.4652,4468.2,4468.1,3.618]
[1756654625479,0.4652,4468.2,4468.1,3.2078]
[1756654627281,0.6902,4468.7,4468.6,0.1841]
[1756654627579,0.4652,4468.7,4468.6,0.4093]
[1756654628386,0.2825,4468.9,4468.8,0.1998]
[1756654628786,3.2078,4469.0,4468.8,0.4253]
[1756654628980,3.6926,4469.0,4468.9,0.4253]
[1756654632182,3.4101,4469.0,4468.3,0.2255]
[1756654632385,0.4848,4468.4,4468.3,0.6503]
[1756654634883,0.4848,4468.4,4468.3,0.4253]
[1756654635083,0.4848,4468.4,4468.3,0.6503]
[1756654635290,0.2825,4468.4,4468.3,0.6503]
[1756654635491,0.4848,4468.4,4468.3,0.6503]
[1756654635786,0.2825,4468.3,4468.0,0.2255]
[1756654635988,0.4848,4467.7,4467.6,3.6331]
[1756654636191,0.4848,4467.7,4467.6,3.8581]
[1756654636890,0.4848,4467.7,4467.6,3.6331]
[1756654637388,0.2825,4467.7,4467.3,0.225]
[1756654637690,0.4848,4467.5,4467.4,0.4253]
[1756654640492,0.4848,4467.5,4467.2,0.225]
[1756654640692,0.2023,4467.3,4467.2,0.6503]
[1756654640884,0.4848,4467.3,4467.2,0.6503]
[1756654643087,0.4848,4467.3,4467.2,0.4253]
[1756654643582,3.2078,4468.0,4467.2,0.1998]
[1756654643789,0.4848,4467.9,4467.8,0.1998]
[1756654643989,0.4848,4467.9,4467.6,0.2255]
[1756654644497,0.4848,4467.9,4467.2,0.2255]
[1756654648992,0.2023,4467.9,4467.8,0.1998]
[1756654649197,0.2023,4467.9,4467.8,0.4255]
[1756654649699,0.4848,4467.9,4467.8,0.4255]
[1756654651004,0.2023,4467.2,4467.1,3.8583]
[1756654651300,0.4848,4467.2,4467.1,3.8583]
[1756654653098,3.2078,4468.0,4467.9,0.4255]
[1756654653301,3.6926,4468.0,4467.9,0.4255]
[1756654655410,0.2825,4467.9,4467.4,0.2257]
[1756654655608,0.2023,4467.3,4467.2,0.4255]
[1756654655911,0.4848,4467.3,4467.2,0.4255]
[1756654657215,0.4848,4467.3,4467.2,0.1998]
[1756654658216,0.2023,4467.3,4467.1,3.2078]
[1756654658416,0.4996,4467.2,4467.1,3.2078]
[1756654658806,0.4996,4467.2,4466.9,0.2258]
[1756654660215,0.4996,4467.2,4466.8,0.226]
[1756654660617,0.198,4467.2,4466.8,0.4518]
[1756654660813,0.198,4466.9,4466.8,0.6392]
[1756654661018,0.4996,4466.9,4466.8,0.4132]
[1756654662113,0.198,4466.9,4466.6,3.2078]
[1756654662318,0.4996,4466.7,4466.6,3.2078]
[1756654662618,0.3016,4466.7,4466.6,3.621]
[1756654662819,0.4996,4466.7,4466.6,3.621]
[1756654663120,0.4996,4466.7,4466.6,3.2078]
[1756654663713,0.4996,4466.7,4466.6,3.4336]
[1756654664020,0.4996,4466.7,4466.6,3.3952]
[1756654664819,0.4996,4466.7,4466.6,3.2078]
[1756654665923,0.4996,4466.7,4466.6,3.621]
[1756654668423,0.3016,4467.1,4466.6,3.3952]
[1756654668721,1.57166983,4467.2,4467.1,0.1874]
[1756654669125,0.4996,4467.2,4467.1,0.4132]
[1756654670717,0.4996,4466.8,4466.7,0.4132]
[1756654673922,0.198,4466.8,4466.6,3.4338]
[1756654674124,0.4996,4466.7,4466.6,3.4338]
[1756654674524,0.4996,4466.7,4466.6,3.2078]
[1756654676324,0.4996,4466.7,4466.6,3.621]
[1756654677624,0.198,4466.8,4466.7,0.4132]
[1756654677825,1.37366983,4467.2,4466.7,0.1874]
[1756654678032,0.198,4466.9,4466.8,0.1874]
[1756654678334,0.198,4466.9,4466.8,0.4132]
[1756654678731,0.4996,4466.9,4466.8,0.4132]
[1756654679630,0.4996,4466.9,4466.6,3.2078]
[1756654679831,0.4996,4466.8,4466.7,0.4132]
[1756654681027,0.4996,4466.8,4466.7,0.1874]
[1756654681234,0.4996,4466.7,4466.6,3.2078]
[1756654684236,0.4996,4466.7,4466.6,0.4132]
[1756654684422,0.4996,4466.7,4466.1,0.225]
[1756654684631,0.198,4465.7,4465.6,0.4132]
[1756654684935,1.57166983,4465.7,4465.6,0.4132]
[1756654685233,1.87326983,4465.7,4465.6,0.4132]
[1756654686433,0.4996,4465.5,4465.4,0.2258]
[1756654686628,1.87326983,4465.5,4465.4,0.2258]
[1756654688635,3.2078,4466.2,4465.6,0.2]
[1756654688636,0.2942,4465.7,4465.6,0.2]
[1756654688935,2.08246983,4466.4,4466.3,0.2]
[1756654689137,2.08246983,4466.4,4466.3,0.4259]
[1756654689641,0.4838,4466.4,4466.3,0.4259]
[1756654692529,0.2942,4466.6,4466.3,0.2]
[1756654692735,0.7088,4466.6,4466.5,0.4259]
[1756654693337,0.4838,4466.6,4466.5,0.4259]
[1756654694036,1.37366983,4466.6,4466.2,0.2259]
[1756654694341,1.37366983,4466.6,4466.2,0.4259]
[1756654694342,0.2942,4466.3,4466.2,0.4259]
[1756654694540,0.2942,4466.5,4466.2,3.4078]
[1756654694738,0.4838,4466.5,4466.4,0.4259]
[1756654699037,0.225,4466.9,4466.5,0.2259]
[1756654699241,0.4838,4466.8,4466.5,0.2259]
[1756654699440,0.1896,4466.8,4466.7,0.4259]
[1756654700042,0.4838,4466.8,4466.7,0.4259]
[1756654700233,0.2942,4467.0,4466.8,0.2259]
[1756654700439,0.2942,4467.0,4466.3,0.225]
[1756654700440,0.2942,4467.0,4466.9,0.2]
[1756654700640,0.4838,4467.0,4466.9,0.4259]
[1756654701045,3.2078,4467.2,4466.9,0.4259]
[1756654701346,3.3974,4467.2,4467.1,0.4259]
[1756654701842,3.6916,4467.2,4467.1,0.4259]
[1756654702036,0.1896,4467.5,4467.4,0.2]
[1756654702242,0.4838,4467.5,4467.4,0.4259]
[1756654702947,1.66786983,4467.6,4467.4,0.4259]
[1756654703143,1.66786983,4467.6,4467.5,0.4259]
[1756654703340,1.85746983,4467.6,4467.5,0.4259]
[1756654703745,1.85746983,4467.6,4466.9,0.2259]
[1756654704045,0.2942,4467.5,4467.0,0.2259]
[1756654704250,1.37366983,4467.6,4467.0,0.22385]
[1756654704443,0.4838,4467.2,4467.1,0.4265]
[1756654705750,0.66822811,4467.2,4467.1,0.4265]
[1756654706850,0.18442811,4467.2,4467.1,0.4265]
[1756654707447,3.2078,4467.7,4467.1,0.2]
[1756654707650,0.47851519,4467.6,4467.5,0.4265]
[1756654708155,0.18431519,4467.6,4467.5,0.4265]
[1756654709050,0.47851519,4467.6,4467.5,0.4265]
[1756654709455,0.66811519,4467.6,4467.5,0.4265]
[1756654710253,0.66811519,4467.6,4467.5,0.6515]
[1756654710454,0.4838,4467.6,4467.5,0.6515]
[1756654711454,0.66789062,4467.6,4467.5,0.6515]
[1756654712052,0.2942,4467.5,4467.2,3.2078]
[1756654712355,1.85746983,4467.3,4466.6,0.225]
[1756654712555,1.85746983,4466.7,4466.6,0.225]
[1756654712757,2.04156045,4466.7,4466.6,0.225]
[1756654714355,2.04161171,4466.7,4466.6,0.225]
[1756654716858,0.1896,4466.5,4466.4,3.2078]
[1756654717158,0.66794188,4466.5,4466.4,3.2078]
[1756654717357,0.66794188,4466.5,4466.4,3.4078]
[1756654717558,0.66794188,4466.5,4466.4,3.6343]
[1756654718054,0.66794188,4466.5,4466.4,3.2078]
[1756654719057,2.04161171,4466.5,4466.4,3.2078]
[1756654719357,0.186,4465.9,4465.3,3.2078]
[1756654719551,0.4898,4465.4,4465.3,3.6252]
[1756654719755,0.67394188,4465.4,4465.3,3.8512]
[1756654722564,0.67394188,4465.4,4465.3,3.6252]
[1756654723059,0.67424989,4465.4,4465.3,3.2078]
[1756654723362,0.67424989,4465.4,4465.3,3.6252]
[1756654724458,0.67424989,4465.4,4465.3,3.2078]
[1756654724870,0.186,4465.4,4464.9,0.226]
[1756654725072,1.37366983,4465.2,4465.1,0.4174]
[1756654725277,1.74406813,4465.2,4464.9,0.226]
[1756654725478,0.186,4465.0,4464.9,0.226]
[1756654725676,0.6741983,4465.0,4464.9,0.417]
[1756654725884,0.67415648,4465.0,4464.9,0.6434]
[1756654733777,0.18435648,4465.0,4464.9,0.6434]
[1756654734279,1.37366983,4465.5,4464.9,0.417]
[1756654734476,0.4898,4465.3,4465.2,0.191]
[1756654734780,0.67384087,4465.3,4465.2,0.4174]
[1756654735682,0.6738512,4465.3,4465.2,0.4174]
[1756654736374,0.67409253,4465.3,4465.2,0.4174]
[1756654740170,0.67409253,4465.3,4464.9,0.2264]
[1756654740374,0.4898,4464.9,4464.8,3.2078]
[1756654740570,0.67409253,4464.9,4464.8,3.4338]
[1756654741081,0.67409253,4464.9,4464.8,3.8512]
[1756654741279,0.67409253,4464.9,4464.8,3.6248]
[1756654743283,0.67409253,4464.9,4464.8,3.8512]
[1756654744185,0.18429253,4464.9,4464.8,3.8512]
[1756654744885,0.48809253,4464.9,4464.8,3.8512]
[1756654745081,0.3038,4464.9,4464.8,3.8512]
[1756654745280,0.48878246,4464.9,4464.8,3.8512]
[1756654745480,0.67478246,4464.9,4464.8,3.8512]
[1756654748391,0.18498246,4464.9,4464.8,3.8512]
[1756654748693,0.18529208,4464.9,4464.8,3.8507]
[1756654755492,0.4851,4466.2,4466.1,0.0649]
[1756654755688,0.4851,4466.7,4466.6,0.1055]
[1756654755887,0.4851,4466.7,4466.6,3.3133]
[1756654756294,0.4851,4466.7,4466.6,0.1055]
[1756654756690,0.2923,4467.5,4466.7,0.0406]
[1756654756898,0.4851,4467.5,4467.4,0.1055]
[1756654758093,0.2923,4467.5,4467.4,0.1055]
[1756654758691,0.2923,4468.1,4467.5,0.0406]
[1756654758896,0.4851,4468.1,4468.0,0.1055]
[1756654759097,0.4851,4468.1,4468.0,0.3315]
[1756654759700,1.37366983,4468.6,4468.0,0.3315]
[1756654759997,0.4851,4468.5,4468.4,0.1055]
[1756654760197,0.4851,4468.5,4468.4,0.3315]
[1756654761401,0.2923,4469.1,4468.4,0.2909]
[1756654761594,0.2923,4469.1,4468.5,0.0406]
[1756654761894,0.4851,4468.6,4468.5,0.1055]
[1756654762492,0.4851,4468.6,4468.5,0.0649]
[1756654762696,0.2923,4468.5,4468.2,3.2484]
[1756654763000,0.4851,4468.3,4468.2,3.3133]
[1756654763199,0.4851,4468.3,4468.2,3.5393]
[1756654764296,0.4851,4468.3,4468.2,3.3133]
[1756654764489,0.4851,4468.3,4468.2,3.5393]
[1756654765295,0.4851,4468.3,4468.2,3.4338]
[1756654766200,0.4851,4468.3,4468.2,3.2078]
[1756654766396,0.4851,4468.3,4468.2,3.4338]
[1756654769400,0.4851,4468.3,4468.2,3.2078]
[1756654769603,0.4851,4468.3,4468.2,3.4338]
[1756654770303,0.2923,4468.9,4468.3,0.0409]
[1756654770497,0.4851,4468.9,4468.8,0.1064]
[1756654772398,0.4851,4468.9,4468.8,0.0655]
[1756654772602,0.4851,4468.9,4468.6,0.226]
[1756654772797,0.4851,4468.9,4468.6,0.2669]
[1756654773906,1.56646983,4468.7,4468.6,0.226]
[1756654774098,1.56646983,4468.7,4468.2,3.2487]
[1756654774299,0.4851,4468.3,4468.2,3.3142]
[1756654774500,0.4851,4468.3,4468.2,3.5402]
[1756654776500,0.4851,4468.3,4468.2,3.3142]
[1756654776699,0.4851,4468.3,4468.2,3.5402]
[1756654777802,1.37366983,4469.1,4468.2,3.5402]
[1756654778106,0.4648,4469.0,4468.9,0.1058]
[1756654778303,0.4648,4469.0,4468.9,0.3318]
[1756654779006,0.2808,4469.0,4468.9,0.3318]
[1756654779599,1.37366983,4469.8,4468.9,3.5396]
[1756654779795,0.2808,4469.7,4469.0,0.0407]
[1756654780399,0.4648,4469.7,4469.6,0.1058]
[1756654781209,0.4648,4469.7,4469.6,0.0651]
[1756654781406,0.4648,4469.7,4469.6,0.1058]
[1756654782001,0.2808,4469.7,4469.6,0.1058]
[1756654782204,0.4648,4469.7,4469.6,0.1058]
[1756654786007,0.4648,4469.7,4469.4,0.226]
[1756654786602,0.4648,4469.7,4469.5,0.226]
[1756654786803,0.4648,4469.7,4469.2,0.0407]
[1756654787009,0.4648,4469.7,4469.5,0.226]
[1756654787516,1.55766983,4469.7,4468.9,3.2078]
[1756654787712,0.4648,4469.0,4468.9,3.2078]
[1756654788113,0.4648,4469.0,4468.9,3.5396]
[1756654790820,1.83846983,4469.0,4468.9,3.2078]
[1756654793123,1.55766983,4469.0,4468.4,3.2078]
[1756654793315,0.184,4468.6,4468.5,0.226]
[1756654793515,0.4648,4468.6,4468.5,0.226]
[1756654794420,0.4648,4468.6,4468.4,3.2078]
[1756654794421,0.184,4468.6,4468.4,3.2078]
[1756654794615,0.184,4468.6,4468.5,0.226]
[1756654795322,0.4648,4468.6,4468.5,0.226]
[1756654797826,0.4648,4468.6,4468.4,3.2078]
[1756654798033,0.2808,4468.5,4468.4,3.2078]
[1756654798329,0.4648,4468.5,4468.4,3.4338]
[1756654799831,0.4648,4468.5,4468.4,3.4745]
[1756654800627,0.4648,4468.5,4468.4,3.2078]
[1756654801132,0.4648,4468.5,4468.4,3.4328]
[1756654801434,0.4648,4468.5,4468.4,3.5386]
[1756654802835,0.4648,4468.5,4468.4,3.3136]
[1756654803036,0.4648,4468.5,4468.4,3.4328]
[1756654803437,0.4648,4468.5,4468.4,3.5386]
[1756654809735,0.491,4469.4,4469.3,0.0664]
[1756654809941,0.491,4469.4,4469.3,0.1079]
[1756654811442,0.491,4469.4,4469.3,0.0664]
[1756654811741,0.491,4469.4,4469.1,0.0415]
[1756654812736,1.37366983,4469.3,4469.1,0.0415]
[1756654812942,0.491,4469.2,4468.9,0.225]
[1756654813329,0.491,4469.2,4468.7,0.0415]
[1756654813330,1.86466983,4469.2,4468.7,0.0415]
[1756654813643,1.86466983,4469.2,4468.2,1.37366983]
[1756654813644,0.491,4468.0,4467.3,3.2493]
[1756654813841,0.491,4467.4,4467.3,3.2078]
[1756654814039,0.491,4467.4,4467.3,3.3157]
[1756654815040,0.491,4467.4,4467.3,3.2078]
[1756654815243,0.491,4467.4,4467.0,0.225]
[1756654815642,0.1941,4467.4,4466.7,3.2493]
[1756654815843,0.491,4466.8,4466.7,3.3157]
[1756654816142,3.2078,4467.9,4466.8,0.0415]
[1756654816143,0.2969,4467.4,4466.8,0.0415]
[1756654816347,0.491,4467.3,4467.2,0.1079]
[1756654818249,0.2969,4467.3,4467.2,0.1079]
[1756654818448,0.2969,4467.3,4467.2,0.3339]
[1756654819347,0.2969,4467.8,4467.2,3.5002]
[1756654819548,0.1941,4467.9,4467.8,0.1079]
[1756654819749,1.37366983,4468.4,4467.8,0.0664]
[1756654819945,0.2969,4468.3,4467.8,0.0415]
[1756654820147,0.491,4468.3,4468.2,0.1079]
[1756654820944,0.491,4468.3,4467.7,3.4338]
[1756654821246,0.491,4467.9,4467.8,0.1079]
[1756654822140,3.2078,4468.5,4468.3,0.0664]
[1756654822347,0.491,4468.4,4468.3,0.1079]
[1756654822747,0.491,4468.4,4468.3,0.0664]
[1756654823653,0.491,4468.4,4468.0,0.0415]
[1756654823854,0.2969,4468.3,4467.8,0.0415]
[1756654824057,0.2969,4468.4,4467.8,0.0415]
[1756654825650,0.491,4468.4,4468.3,0.106]
[1756654826755,3.2078,4468.5,4468.4,0.0396]
[1756654826958,0.2969,4468.7,4468.6,0.1029]
[1756654827158,0.2969,4468.7,4468.6,0.3289]
[1756654827854,0.1941,4469.2,4469.1,0.0633]
[1756654828048,0.1941,4469.2,4469.1,0.1029]
[1756654828446,0.491,4469.2,4469.1,0.1029]
[1756654831459,0.2969,4470.1,4469.2,0.0396]
[1756654831656,0.1941,4469.5,4469.4,0.1029]
[1756654831856,0.491,4469.5,4469.4,0.3289]
[1756654832657,0.491,4470.1,4470.0,0.0633]
[1756654832858,0.491,4470.1,4470.0,0.3289]
[1756654833158,3.4019,4470.7,4470.6,0.0633]
[1756654833358,3.4019,4470.7,4470.6,0.3289]
[1756654833558,3.6988,4470.7,4470.6,0.3289]
[1756654834154,0.491,4470.7,4470.6,3.5367]
[1756654834357,0.2969,4470.7,4470.6,3.5367]
[1756654835255,0.2969,4471.1,4470.6,3.4971]
[1756654835456,0.2969,4471.1,4471.0,0.1029]
[1756654835659,0.2969,4471.1,4471.0,0.3289]
[1756654836049,0.491,4471.1,4471.0,0.3289]
[1756654836254,0.2969,4471.1,4471.0,0.3289]
[1756654836458,0.491,4471.1,4471.0,0.3289]
[1756654838261,0.491,4471.1,4471.0,0.226]
[1756654839359,0.491,4471.1,4470.6,3.2078]
[1756654839360,0.4812,4470.7,4470.6,3.2078]
[1756654839565,0.4812,4470.7,4470.6,3.4338]
[1756654841156,0.226,4471.7,4470.7,0.0406]
[1756654841362,0.2945,4471.6,4470.8,0.0406]
[1756654841556,0.4812,4471.0,4470.9,0.3315]
[1756654842765,0.2945,4471.0,4470.9,0.3315]
[1756654844058,0.4812,4471.0,4470.9,1.70516983]
[1756654844456,0.2945,4470.9,4470.7,0.226]
[1756654844658,0.4812,4470.8,4470.7,0.226]
[1756654844972,0.4812,4470.8,4470.7,0.3315]
[1756654845565,0.4812,4470.8,4470.7,0.2909]
[1756654845967,0.4812,4470.8,4470.7,0.226]
[1756654851664,0.2945,4470.8,4470.7,0.3315]
[1756654851864,0.1867,4470.9,4470.8,0.1055]
[1756654852061,0.4812,4470.9,4470.8,0.1055]
[1756654852256,0.2945,4470.9,4470.8,0.1055]
[1756654852657,0.4812,4471.7,4471.6,0.0649]
[1756654853158,0.4812,4471.7,4471.6,0.1055]
[1756654854764,0.2945,4472.4,4471.6,0.0649]
[1756654854966,0.1867,4471.9,4471.8,0.1055]
[1756654855162,0.4812,4471.9,4471.7,0.226]
[1756654855363,0.4812,4471.9,4471.4,0.0406]
[1756654855566,0.4812,4471.9,4471.5,0.226]
[1756654855969,0.1867,4471.9,4471.2,4.62206983]
[1756654856270,0.4812,4471.8,4471.7,0.1055]
[1756654856465,0.4812,4471.8,4471.7,0.3315]
[1756654857670,0.4812,4471.8,4471.7,3.5393]
[1756654857867,0.2945,4471.8,4471.7,3.5393]
[1756654858073,0.2945,4472.8,4471.8,0.0406]
[1756654858264,0.1867,4472.3,4472.2,0.1055]
[1756654858464,0.1867,4472.3,4472.2,0.3315]
[1756654858669,0.4812,4472.3,4472.2,0.3315]
[1756654860069,0.2945,4472.3,4472.2,0.3315]
[1756654860373,0.4812,4472.3,4472.2,0.3315]
[1756654860873,3.2078,4473.0,4472.2,3.5393]
[1756654861068,0.4812,4473.0,4472.9,1.37366983]
[1756654861269,0.4812,4473.0,4472.9,1.59966983]
[1756654861469,0.4812,4473.0,4472.9,0.226]
[1756654862571,0.1867,4473.0,4472.9,0.226]
[1756654863170,0.4812,4473.0,4472.9,0.226]
[1756654864472,0.4812,4473.0,4472.9,0.2905]
[1756654865068,0.4812,4473.0,4472.9,0.226]
[1756654866165,0.4812,4473.0,4472.9,0.2905]
[1756654866578,0.4812,4473.0,4472.9,0.226]
[1756654867279,0.4812,4473.0,4472.9,0.3308]